Body Name,Body,Service Level,Expense Type,Expense Code,Narrative,Date,Transaction Number,Amount,Capital and Revenue,Supplier Name,Supplier ID
South Ribble Borough Council,http://statistics.data.gov.uk/id/local-authority/30UE,Regulatory Services,External Contractors Charges,4570,"Property Clearance in default of an Abatement Notice - EPA 1990, ADDRESS REDACTED",08/11/2023,0000493063,678.84,Revenue,3d Environmental Ltd T/A 4DENV,0
South Ribble Borough Council,http://statistics.data.gov.uk/id/local-authority/30UE,Open Spaces,GM Refurbishment,4657,Roadmarkings for Ryefield avenue car park as per quote 15592,22/11/2023,0000493929,550,Revenue,A1 STREEMLINE ROAD MARKING,0
South Ribble Borough Council,http://statistics.data.gov.uk/id/local-authority/30UE,Recreation & Sport,Professional Fees,4510,"Equality in Sport & Physical Activity 07.09.23 x 15places @39.00 each, , Total = 585.00 ex VAT, , Invoice No. 1936",01/11/2023,0000493419,585,Revenue,ACTIVE LANCASHIRE,0
South Ribble Borough Council,http://statistics.data.gov.uk/id/local-authority/30UE,Central Support Services,Reactive Repair & Maintenance,2020,"To replace urinal sparge pipe work, along with replacing the urinal syphon. Due to heavy corrosion and leaking joints evident. Be",15/11/2023,0000493786,575,Revenue,Ainscoe Plumbing & Heating Ltd,0
South Ribble Borough Council,http://statistics.data.gov.uk/id/local-authority/30UE,Central Support Services,Reactive Repair & Maintenance,2020,"Supply and fit new Zip Hydroboil boiler. DWP Staff kitchen, first floor. Please contact NAME REDACRED for access ",15/11/2023,0000493787,1050,Revenue,Ainscoe Plumbing & Heating Ltd,0
South Ribble Borough Council,http://statistics.data.gov.uk/id/local-authority/30UE,Open Spaces,External Contractors Charges,4570,Cut and collect meadows in the Borough.,08/11/2023,0000493705,6569,Revenue,ALBEN LANDSCAPES,0
South Ribble Borough Council,http://statistics.data.gov.uk/id/local-authority/30UE,Capital,Cap Contract Payment,C230,"South Ribble Tennis Centre Decarbonisation Works:Sub-Total : 877,302.16+ VAT 175,460.43Total: 1,052,762.59",03/11/2023,0000492676,122285.48,Revenue,Alliance Leisure Services Limited,0
South Ribble Borough Council,http://statistics.data.gov.uk/id/local-authority/30UE,Capital,Cap Contract Payment,C230,"Penwortham Leisure Centre Decarbonisation Works:Sub-Total : 2,179,797.00+ VAT 435,959.40Total: 2,615,756.40",03/11/2023,0000492699,108701.47,Revenue,Alliance Leisure Services Limited,0
South Ribble Borough Council,http://statistics.data.gov.uk/id/local-authority/30UE,Capital,Cap Contract Payment,C230,"final M&E Works in line with the Decarbonisation Scheme, across the leisure centre and civic centre The Civic Centre Decarbonisat",03/11/2023,0000492700,4754.39,Revenue,Alliance Leisure Services Limited,0
South Ribble Borough Council,http://statistics.data.gov.uk/id/local-authority/30UE,Capital,Cap Contract Payment,C230,"final M&E Works in line with the Decarbonisation Scheme, across the leisure centre and civic centre The Civic Centre Decarbonisat",03/11/2023,0000492703,10033.32,Revenue,Alliance Leisure Services Limited,0
South Ribble Borough Council,http://statistics.data.gov.uk/id/local-authority/30UE,Capital,Cap Contract Payment,C230,"South Ribble Tennis Centre Decarbonisation Works:Sub-Total : 877,302.16+ VAT 175,460.43Total: 1,052,762.59",03/11/2023,0000492703,152796.24,Revenue,Alliance Leisure Services Limited,0
South Ribble Borough Council,http://statistics.data.gov.uk/id/local-authority/30UE,Capital,Cap Contract Payment,C230,"for DNO Connections and M&E Works in line with the Decarbonisation Scheme, across the leisure centres and civic centre please.Ley",03/11/2023,0000492704,278369.9,Revenue,Alliance Leisure Services Limited,0
South Ribble Borough Council,http://statistics.data.gov.uk/id/local-authority/30UE,Capital,Cap Contract Payment,C230,"for DNO Connections and M&E Works in line with the Decarbonisation Scheme, across the leisure centres and civic centre please.Bam",03/11/2023,0000492752,235122.81,Revenue,Alliance Leisure Services Limited,0
South Ribble Borough Council,http://statistics.data.gov.uk/id/local-authority/30UE,Capital,Cap Contract Payment,C230,"South Ribble Tennis Centre Decarbonisation Works:Sub-Total : 877,302.16+ VAT 175,460.43Total: 1,052,762.59",03/11/2023,0000492758,196566.27,Revenue,Alliance Leisure Services Limited,0
South Ribble Borough Council,http://statistics.data.gov.uk/id/local-authority/30UE,Capital,Cap Contract Payment,C230,"South Ribble Tennis Centre Decarbonisation Works:Sub-Total : 877,302.16+ VAT 175,460.43Total: 1,052,762.59",03/11/2023,0000492759,10033.32,Revenue,Alliance Leisure Services Limited,0
South Ribble Borough Council,http://statistics.data.gov.uk/id/local-authority/30UE,Capital,Cap Contract Payment,C230,"for DNO Connections and M&E Works in line with the Decarbonisation Scheme, across the leisure centres and civic centre please.Bam",03/11/2023,0000492760,173301.62,Revenue,Alliance Leisure Services Limited,0
South Ribble Borough Council,http://statistics.data.gov.uk/id/local-authority/30UE,Capital,Cap Contract Payment,C230,"Penwortham Leisure Centre Decarbonisation Works:Sub-Total : 2,179,797.00+ VAT 435,959.40Total: 2,615,756.40",03/11/2023,0000492761,196002.48,Revenue,Alliance Leisure Services Limited,0
South Ribble Borough Council,http://statistics.data.gov.uk/id/local-authority/30UE,Capital,Cap Contract Payment,C230,"for DNO Connections and M&E Works in line with the Decarbonisation Scheme, across the leisure centres and civic centre please.Ley",03/11/2023,0000492762,175903.83,Revenue,Alliance Leisure Services Limited,0
South Ribble Borough Council,http://statistics.data.gov.uk/id/local-authority/30UE,Capital,Cap Contract Payment,C230,"for DNO Connections and M&E Works in line with the Decarbonisation Scheme, across the leisure centres and civic centre please., ,",29/11/2023,0000493404,155104.48,Revenue,Alliance Leisure Services Limited,0
South Ribble Borough Council,http://statistics.data.gov.uk/id/local-authority/30UE,Capital,Cap Contract Payment,C230,"final M&E Works in line with the Decarbonisation Scheme, across the leisure centre and civic centre , The Civic Centre Decarbonis",01/11/2023,0000493405,1337.7,Revenue,Alliance Leisure Services Limited,0
South Ribble Borough Council,http://statistics.data.gov.uk/id/local-authority/30UE,Capital,Cap Contract Payment,C230,"for DNO Connections and M&E Works in line with the Decarbonisation Scheme, across the leisure centres and civic centre please., ,",29/11/2023,0000493406,110897.51,Revenue,Alliance Leisure Services Limited,0
South Ribble Borough Council,http://statistics.data.gov.uk/id/local-authority/30UE,Capital,Cap Contract Payment,C230,"Penwortham Leisure Centre Decarbonisation Works:, Sub-Total : 2,179,797.00, + VAT 435,959.40, Total: 2,615,756.40",29/11/2023,0000493407,15878.59,Revenue,Alliance Leisure Services Limited,0
South Ribble Borough Council,http://statistics.data.gov.uk/id/local-authority/30UE,Capital,Cap Contract Payment,C230,"South Ribble Tennis Centre Decarbonisation Works:, Sub-Total : 877,302.16, + VAT 175,460.43, Total: 1,052,762.59",29/11/2023,0000493408,60610.41,Revenue,Alliance Leisure Services Limited,0
South Ribble Borough Council,http://statistics.data.gov.uk/id/local-authority/30UE,Local Tax Collection,Bank Charges,4811,post office,08/11/2023,0000493653,547.3,Revenue,ALLPAY LTD,0
South Ribble Borough Council,http://statistics.data.gov.uk/id/local-authority/30UE,Central Support Services,Agency Staff,1121,Agency Staff w/e 08/10/2023 - Week 27,15/11/2023,0000493502,6015.5,Revenue,ALS Managed Services Ltd,0
South Ribble Borough Council,http://statistics.data.gov.uk/id/local-authority/30UE,Central Support Services,Agency Staff,1121,Agency Staff w/e 15/10/2023 - Week 28,01/11/2023,0000493518,4148.62,Revenue,ALS Managed Services Ltd,0
South Ribble Borough Council,http://statistics.data.gov.uk/id/local-authority/30UE,Central Support Services,Agency Staff,1121,Agency Staff w/e 24/09/2023 - Week 25,15/11/2023,0000493771,6421.95,Revenue,ALS Managed Services Ltd,0
South Ribble Borough Council,http://statistics.data.gov.uk/id/local-authority/30UE,Central Support Services,Agency Staff,1121,Agency Staff w/e 22/10/2023 - Week 29,15/11/2023,0000493772,5584.24,Revenue,ALS Managed Services Ltd,0
South Ribble Borough Council,http://statistics.data.gov.uk/id/local-authority/30UE,Central Support Services,Agency Staff,1121,Agency Staff w/e 17/09/2023 - Week 24,15/11/2023,0000493788,7166.16,Revenue,ALS Managed Services Ltd,0
South Ribble Borough Council,http://statistics.data.gov.uk/id/local-authority/30UE,Central Support Services,Agency Staff,1121,Agency Staff w/e 01/10/2023 - Week 26,15/11/2023,0000493789,6768.43,Revenue,ALS Managed Services Ltd,0
South Ribble Borough Council,http://statistics.data.gov.uk/id/local-authority/30UE,Central Support Services,Agency Staff,1121,Agency Staff w/e 29/10/2023 - Week 30,15/11/2023,0000493790,5638.38,Revenue,ALS Managed Services Ltd,0
South Ribble Borough Council,http://statistics.data.gov.uk/id/local-authority/30UE,Central Support Services,Agency Staff,1121,Agency Staff w/e 05/11/2023 - Week 31,22/11/2023,0000494077,4652.56,Revenue,ALS Managed Services Ltd,0
South Ribble Borough Council,http://statistics.data.gov.uk/id/local-authority/30UE,Central Support Services,Agency Staff,1121,Agency Staff w/e 12/11/2023 - Week 32,29/11/2023,0000494224,3734.92,Revenue,ALS Managed Services Ltd,0
South Ribble Borough Council,http://statistics.data.gov.uk/id/local-authority/30UE,Central Support Services,Agency Staff,1121,Agency Staff w/e 19/11/2023 - Week 33,29/11/2023,0000494375,4690.79,Revenue,ALS Managed Services Ltd,0
South Ribble Borough Council,http://statistics.data.gov.uk/id/local-authority/30UE,Central Support Services,Office Requisites,4136,"Installation of 48 network points, supply and termination 2 x Excel 24 way Cat6 patch panels in the main office and installation ",22/11/2023,0000494085,3840,Revenue,AMPEC Limited,0
South Ribble Borough Council,http://statistics.data.gov.uk/id/local-authority/30UE,Development Control,Royalties,4854,New data points for planning and enforcement,29/11/2023,0000494308,720,Revenue,AMPEC Limited,0
South Ribble Borough Council,http://statistics.data.gov.uk/id/local-authority/30UE,Community Development,Miscellaneous Expenses,4851,0,01/11/2023,0000493485,500,Revenue,Angela Nolan,0
South Ribble Borough Council,http://statistics.data.gov.uk/id/local-authority/30UE,Community Development,Miscellaneous Expenses,4851,0,22/11/2023,0000494133,500,Revenue,Angela Nolan,0
South Ribble Borough Council,http://statistics.data.gov.uk/id/local-authority/30UE,Capital,Cap Contract Payment,C230,"Archaeological Watching Brief, Worden Park (August 2023 onwards)",29/11/2023,0000494254,2450,Revenue,Archaeological Research Services Ltd,0
South Ribble Borough Council,http://statistics.data.gov.uk/id/local-authority/30UE,Central Support Services,Property Insurance,2811,"Increase in declared value for ADDRESS REDACTED, , Change in property value for Vernon Carus sports club",08/11/2023,0000493691,720.23,Revenue,Arthur J. Gallagher,0
South Ribble Borough Council,http://statistics.data.gov.uk/id/local-authority/30UE,Community Development,Contributions to Other Bodies,4730,Supply of 700 Lunch Packs for Kingsfold Primary School HAF Plus Camps @ 5 Per Head,15/11/2023,0000493974,700,Revenue,Artisan Deli Limited,0
South Ribble Borough Council,http://statistics.data.gov.uk/id/local-authority/30UE,Corporate Management,Short Course,1402,� AEA Annual Conference,22/11/2023,0000493738,675,Revenue,ASSOC OF ELECTORAL ADMINISTRATORS LTD,0
South Ribble Borough Council,http://statistics.data.gov.uk/id/local-authority/30UE,Short Term Creditors,Amount Paid,0030,28-Jun-23,03/11/2023,0000493008,41238.34,Revenue,Barclays Bank Plc,0
South Ribble Borough Council,http://statistics.data.gov.uk/id/local-authority/30UE,Short Term Creditors,Amount Paid,0030,28-Jul-23,03/11/2023,0000493009,57036.01,Revenue,Barclays Bank Plc,0
South Ribble Borough Council,http://statistics.data.gov.uk/id/local-authority/30UE,Short Term Creditors,Amount Paid,0030,28-Aug-23,03/11/2023,0000493010,31099.1,Revenue,Barclays Bank Plc,0
South Ribble Borough Council,http://statistics.data.gov.uk/id/local-authority/30UE,Housing Advice,Contributions to Other Bodies,4730,AFFORDABLE WARMTH SCHEME FOR BOILER REPLACEMENT WORKS AT ADDRESS REDACTED PER QUOTE SUPPLIED OF 1739.06 INC VAT,08/11/2023,0000493702,1449.22,Revenue,Bartons of Duke Street Ltd,0
South Ribble Borough Council,http://statistics.data.gov.uk/id/local-authority/30UE,Housing Advice,Contributions to Other Bodies,4730,AFFORDABLE WARMTH SCHEME FOR BOILER REPLACEMENT WORKS AT ADDRESS REDACTED AS PER QUOTE SUPPLIED OF 1739.06 INC VAT,15/11/2023,0000493776,1449.22,Revenue,Bartons of Duke Street Ltd,0
South Ribble Borough Council,http://statistics.data.gov.uk/id/local-authority/30UE,Homelessness,Temporary Accommodation,5311,"Hello., , I am raising this purchase order so that SRBC can pay Bay Roomz hotel in Morecambe the sum of 800.00 for a homelessnes",29/11/2023,0000494280,800,Revenue,Bay Roomz Ltd,0
South Ribble Borough Council,http://statistics.data.gov.uk/id/local-authority/30UE,Open Spaces,GM Refurbishment,4657,"Installation of light sensor and replace mechanical timer with electronic for lit bollards at Hurst Grange Coach House, Penwortha",15/11/2023,0000493345,530,Revenue,BELEC ELECTRICAL LTD,0
South Ribble Borough Council,http://statistics.data.gov.uk/id/local-authority/30UE,Surplus or Deficit on Trading,Reactive Repair & Maintenance,2020,5 x double sockets and associated labour / EICR cert at 18b Boxer Place as per NAME REDACTED request,15/11/2023,0000493977,774.85,Revenue,BELEC ELECTRICAL LTD,0
South Ribble Borough Council,http://statistics.data.gov.uk/id/local-authority/30UE,Surplus or Deficit on Trading,Reactive Repair & Maintenance,2020,"Service - rewire of SUB DB supply cable from lucy box to the club house at the railway. 2 way consumer at lucy box. , �	SWA armou",15/11/2023,0000493978,2477.5,Revenue,BELEC ELECTRICAL LTD,0
South Ribble Borough Council,http://statistics.data.gov.uk/id/local-authority/30UE,Recreation & Sport,Materials General,4040,"Supply of Sports Leaders Bags and Delivered to Schools, SPLIT: 595 from 4040, 1,000 from 4842",29/11/2023,0000494120,595.05,Revenue,Bishop Sports & Leisure Ltd,0
South Ribble Borough Council,http://statistics.data.gov.uk/id/local-authority/30UE,Recreation & Sport,Publicity & Promotion,4842,"Supply of Sports Leaders Bags and Delivered to Schools, SPLIT: 595 from 4040, 1,000 from 4842",29/11/2023,0000494120,1000,Revenue,Bishop Sports & Leisure Ltd,0
South Ribble Borough Council,http://statistics.data.gov.uk/id/local-authority/30UE,Waste Collection,Hiring Expenses,3212,Hire of a DAF LF45 160 20FT Tail-Lift Truck 7.5T @300/week for delivery 19 June 2023 until 14 July 2023,22/11/2023,0000493424,1200,Revenue,Blackburn Van Hire & Sales Limited,0
South Ribble Borough Council,http://statistics.data.gov.uk/id/local-authority/30UE,Development Control,Professional Fees,4510,Heritage consultancy advice 23/24,08/11/2023,0000493661,1046.21,Revenue,BLACKBURN WITH DARWEN BOROUGH COUNCIL,0
South Ribble Borough Council,http://statistics.data.gov.uk/id/local-authority/30UE,Short Term Creditors,Amount Paid,0030,Blues and Twos - Oct 23 Deductions from Payroll,15/11/2023,0000493821,5780,Revenue,Blues and Twos Credit Union,0
South Ribble Borough Council,http://statistics.data.gov.uk/id/local-authority/30UE,Capital,Cap Contract Payment,C230,"Leyland Town Deal - Demolition and Asbestos Removal at the Former Engineering Works Site at Quin Street, Leyland",29/11/2023,0000493998,42000,Revenue,Bradley Demolition Limited,0
South Ribble Borough Council,http://statistics.data.gov.uk/id/local-authority/30UE,Capital,Cap Contract Payment,C230,"Leyland Town Deal - Demolition and Asbestos Removal at the Former Engineering Works Site at Quin Street, Leyland",29/11/2023,0000494009,60000,Revenue,Bradley Demolition Limited,0
South Ribble Borough Council,http://statistics.data.gov.uk/id/local-authority/30UE,Culture & Heritage,Miscellaneous Expenses,4851,"2 x Dangerous & Flammable Substance COSHH Storage Cabinets @ 409.99, , Dangerous & Flammable Substance COSHH Storage Cabinets, C",29/11/2023,0000493880,825.93,Revenue,Brady Corporation t/a Seton,0
South Ribble Borough Council,http://statistics.data.gov.uk/id/local-authority/30UE,Central Support Services,Materials General,4040,DERBY SLIMLINE LITTER BIN WITH ASHTRAY (BLACK) BX45 2596,15/11/2023,0000493725,5800,Revenue,BROXAP LTD,0
South Ribble Borough Council,http://statistics.data.gov.uk/id/local-authority/30UE,Capital,Cap Contract Payment,C230,"Main Contract - Jubilee Gardens Extra Care, West Paddock, Leyland, Construction Contract for Extra Care Facility, Instruction as ",15/11/2023,0000492985,595981.52,Revenue,Caddick Construction (NW) Ltd,0
South Ribble Borough Council,http://statistics.data.gov.uk/id/local-authority/30UE,Capital,Cap Contract Payment,C230,"Main Contract - Jubilee Gardens Extra Care, West Paddock, Leyland, Construction Contract for Extra Care Facility, Instruction as ",08/11/2023,0000493798,646431.54,Revenue,Caddick Construction (NW) Ltd,0
South Ribble Borough Council,http://statistics.data.gov.uk/id/local-authority/30UE,Central Support Services,IT Consumables,413A,nls virtual license,29/11/2023,0000494070,1785,Revenue,Caseware UK,0
South Ribble Borough Council,http://statistics.data.gov.uk/id/local-authority/30UE,Open Spaces,GM Refurbishment,4657,"x5 Milton Keynes 2 - way gates (1200mm) @ 296. Each, x1 Estate Fence style gate post 2000mm  114mm diameter @ 95.00, x1 Delive",22/11/2023,0000493932,1720,Revenue,CENTREWIRE,0
South Ribble Borough Council,http://statistics.data.gov.uk/id/local-authority/30UE,Central Support Services,Materials General,4040,1000lts Midland Hydraulic Oil 46 - 1.25ppl,01/11/2023,0000493544,1250,Revenue,CGN Limited,0
South Ribble Borough Council,http://statistics.data.gov.uk/id/local-authority/30UE,Central Support Services,Materials General,4040,205ltrs Synmax Spectrum 5w/30 - 2.99ppl,01/11/2023,0000493544,612.95,Revenue,CGN Limited,0
South Ribble Borough Council,http://statistics.data.gov.uk/id/local-authority/30UE,Central Support Services,Consultancy Fees,4541,Building Energy Design for Salix decarbonisation bid for Moss Side Community Centre as per quotation.,15/11/2023,0000493186,5500,Revenue,CGP MEP Ltd,0
South Ribble Borough Council,http://statistics.data.gov.uk/id/local-authority/30UE,Homelessness,Temporary Accommodation,5311,"Purchase order for Cotswold House RSP - rough sleeper provision (operated by Chorley Council) - September 2023 bill., , The total",15/11/2023,0000493741,840,Revenue,CHORLEY BOROUGH COUNCIL,0
South Ribble Borough Council,http://statistics.data.gov.uk/id/local-authority/30UE,Corporate Management,Miscellaneous Expenses,4851,Quarter 2 Recharges 2023/24,08/11/2023,0000493840,797435.98,Revenue,CHORLEY BOROUGH COUNCIL,0
South Ribble Borough Council,http://statistics.data.gov.uk/id/local-authority/30UE,Capital,Cap Contract Payment,C230,"4.5 Cubic meters of ST3 concrete inc Wheelbarrow service @ 140 per cubic meter, for Worden Park walled garden pot house, Friday ",29/11/2023,0000493096,686,Revenue,Chorley Concrete Ltd,0
South Ribble Borough Council,http://statistics.data.gov.uk/id/local-authority/30UE,Central Support Services,Materials General,4040,"FILTER KIT, VIN REDACTED, JFC 20876",01/11/2023,0000493410,540.78,Revenue,CICELEY COMMERCIALS LTD,0
South Ribble Borough Council,http://statistics.data.gov.uk/id/local-authority/30UE,Democratic Represent and  Mgnt,Members Training,1406,Audit Committee Training - as requested by NAME REDACTED.,29/11/2023,0000494346,1450,Revenue,CIPFA BUSINESS LTD,0
South Ribble Borough Council,http://statistics.data.gov.uk/id/local-authority/30UE,Parking Services,Materials General,4040,10x Batterys Rec22 12I,15/11/2023,0000493838,850,Revenue,City Electrical Factors Ltd,0
South Ribble Borough Council,http://statistics.data.gov.uk/id/local-authority/30UE,Homelessness,Contributions to Other Bodies,4730,"I am raising a purchase order for CIVICA UK LTD., , This is so that South Ribble Borough Council can pay CIVICA`s Invoice M/HG120",15/11/2023,0000493928,4145.75,Revenue,CIVICA UK LTD,0
South Ribble Borough Council,http://statistics.data.gov.uk/id/local-authority/30UE,Central Support Services,Software Licensing,4243,"LSM6994ABR, Support and Maintenance, For the Period : 01/10/2023 to 30/06/2024, , Additional Annual charge to South Ribble for ex",29/11/2023,0000494340,2241.25,Revenue,CIVICA UK LTD,0
South Ribble Borough Council,http://statistics.data.gov.uk/id/local-authority/30UE,Central Support Services,Miscellaneous Expenses,4851,Serve & Evict travellers from Ciivc Centre Car Park on 25th October 2023,01/11/2023,0000493556,2825,Revenue,Court Enforcement Specialists Ltd,0
South Ribble Borough Council,http://statistics.data.gov.uk/id/local-authority/30UE,Central Support Services,Miscellaneous Expenses,4851,Serve and evict travellers from ADDRESS REDACTED on 26th October 2023,08/11/2023,0000493648,2750,Revenue,Court Enforcement Specialists Ltd,0
South Ribble Borough Council,http://statistics.data.gov.uk/id/local-authority/30UE,Central Support Services,Miscellaneous Expenses,4851,"To serve and evict travellers from , ADDRESS REDACTED",29/11/2023,0000494253,1700,Revenue,Court Enforcement Specialists Ltd,0
South Ribble Borough Council,http://statistics.data.gov.uk/id/local-authority/30UE,Capital,Capital Grant,C570,DFG WORK FOR ADAPTATION FOR LEVEL ACCESS SHOWER AT ADDRESS REDACTED REDACTED AS PER SRBC PLANS AND QUOTE SUPPLIED OF 6,22/11/2023,0000494177,5899.56,Revenue,Croston Plumbing & Heating Ltd,0
South Ribble Borough Council,http://statistics.data.gov.uk/id/local-authority/30UE,Capital,Cap Professional Fees,C210,cancelled by credit 0068924,29/11/2023,0000492306,6387,Revenue,Curtins Consulting Ltd,0
South Ribble Borough Council,http://statistics.data.gov.uk/id/local-authority/30UE,Capital,Cap Professional Fees,C210,cancelled by credit 0068922,29/11/2023,0000493133,6387,Revenue,Curtins Consulting Ltd,0
South Ribble Borough Council,http://statistics.data.gov.uk/id/local-authority/30UE,Capital,Capital Grant,C570,DFG WORK FOR ADAPTATION FOR BEDROOM/BATHROOM EXTENSION AT ADDRESS REDACTED AS PER SRBC PLANS AND QUOTE SUPPL,22/11/2023,0000494176,15000,Revenue,D.M FARRELL,0
South Ribble Borough Council,http://statistics.data.gov.uk/id/local-authority/30UE,Community Development,Miscellaneous Expenses,4851,0,01/11/2023,0000493473,500,Revenue,Danielle Mensah,0
South Ribble Borough Council,http://statistics.data.gov.uk/id/local-authority/30UE,Community Development,Miscellaneous Expenses,4851,0,22/11/2023,0000494121,500,Revenue,Danielle Mensah,0
South Ribble Borough Council,http://statistics.data.gov.uk/id/local-authority/30UE,Community Development,Miscellaneous Expenses,4851,0,01/11/2023,0000493488,500,Revenue,Debbie Moore,0
South Ribble Borough Council,http://statistics.data.gov.uk/id/local-authority/30UE,Community Development,Miscellaneous Expenses,4851,0,22/11/2023,0000494136,500,Revenue,Debbie Moore,0
South Ribble Borough Council,http://statistics.data.gov.uk/id/local-authority/30UE,Corporate Management,Miscellaneous Expenses,4851,Repay SRBC 2015 Flood Recovery Grant Overpayment,01/11/2023,0000493275,15064,Revenue,Department for Communities and Local Government,0
South Ribble Borough Council,http://statistics.data.gov.uk/id/local-authority/30UE,Surplus or Deficit on Trading,Reactive Repair & Maintenance,2020,"Remedial works required to obtain satisfactory five year EICR. , C2�s - 1,990.00 74 Towngate socal club, Leyland, PR25 2LR, C3�s",01/11/2023,0000493330,2650,Revenue,DES Electrical Services Ltd,0
South Ribble Borough Council,http://statistics.data.gov.uk/id/local-authority/30UE,Capital,Misc Capital Payments,C234,"To carry out an EICR at Vernon Carus sports club house building and changing room building. , Total of 54 circuits split over dis",01/11/2023,0000493349,810,Revenue,DES Electrical Services Ltd,0
South Ribble Borough Council,http://statistics.data.gov.uk/id/local-authority/30UE,Surplus or Deficit on Trading,Reactive Repair & Maintenance,2020,"To close off the opening between units 1 and 2: , - Rmove sections of half block wall which have been cut out to form the opening",08/11/2023,0000493625,1069,Revenue,DES Electrical Services Ltd,0
South Ribble Borough Council,http://statistics.data.gov.uk/id/local-authority/30UE,Surplus or Deficit on Trading,Intruder Alarm,2035,To provide maintenance and remote monitoring for the basement at Pearson House. The below cost will include 2x service visits ove,15/11/2023,0000493745,555,Revenue,DES Electrical Services Ltd,0
South Ribble Borough Council,http://statistics.data.gov.uk/id/local-authority/30UE,Capital,Misc Capital Payments,C234,"To carry out a fire risk assessment at Vernon Carus club house & changing room building. Provide a full report on completion. , a",15/11/2023,0000493860,540,Revenue,DES Electrical Services Ltd,0
South Ribble Borough Council,http://statistics.data.gov.uk/id/local-authority/30UE,Capital,Misc Capital Payments,C234,"Scope of Works - , To install emergency lighting in the changing room building at Vernon Carus sport club. This building currentl",22/11/2023,0000493883,2909,Revenue,DES Electrical Services Ltd,0
South Ribble Borough Council,http://statistics.data.gov.uk/id/local-authority/30UE,Democratic Represent and  Mgnt,Furniture,4017,Order and supply of x8 under desk drawer units for the Leader and Cabinet Offices.,15/11/2023,0000492837,1507.4,Revenue,Diamond Business Interiors Ltd,0
South Ribble Borough Council,http://statistics.data.gov.uk/id/local-authority/30UE,Economic Development,Grants Voluntary Organisation,4711,BEE Scheme 'ZoVetServices Ltd,15/11/2023,0000493994,2000,Revenue,Dr Zoe Costigan,0
South Ribble Borough Council,http://statistics.data.gov.uk/id/local-authority/30UE,Corporate Management,Short Course,1402,Interview & Statement Training under PACE,29/11/2023,0000494161,2250,Revenue,Duncan Greene,0
South Ribble Borough Council,http://statistics.data.gov.uk/id/local-authority/30UE,Open Spaces,Commemorative Features,4019,"Evergreen seat with green cast iron frame , and black recycled plastic slats. No ground , fixings",15/11/2023,0000493088,649,Revenue,EARTH ANCHORS LTD,0
South Ribble Borough Council,http://statistics.data.gov.uk/id/local-authority/30UE,Democratic Represent and  Mgnt,Civic & Remembrance Day,463A,"Order of the following....., , Q0081674  32 YEAR SERVICE BAR , 9ct. Gold (RC3) bar. , Rectangular shape, size 36mm x 8mm. , Two ",15/11/2023,0000493509,1492.32,Revenue,FATTORINI SALES & PRODUCTION,0
South Ribble Borough Council,http://statistics.data.gov.uk/id/local-authority/30UE,Open Spaces,GM Refurbishment,4657,6mm/ 8mm Shackles and amalgamating tape as per quotation 61959(5/9/23).,15/11/2023,0000493423,972,Revenue,FENLAND LEISURE LTD,0
South Ribble Borough Council,http://statistics.data.gov.uk/id/local-authority/30UE,Open Spaces,GM Refurbishment,4657,"MV026 � Ring Connectors � x10 = 66.60, MV001M/5M = Multi-coloured string lights � X 15 = 179.87, MV001M/10M � Multi-coloured st",01/11/2023,0000493297,576.3,Revenue,FESTIVE LIGHTS,0
South Ribble Borough Council,http://statistics.data.gov.uk/id/local-authority/30UE,Parking Services,Maintenance & Repair,4013,"Repairs to P&D machines at worden Park, as per Quote : 021023LRS0085-2",15/11/2023,0000493531,1761,Revenue,Flowbird Smart City UK Ltd,0
South Ribble Borough Council,http://statistics.data.gov.uk/id/local-authority/30UE,Culture & Heritage,Operational Equip & Tools,4010,"Hiring of equipment and crockery for Wedding at Worden, Hall for recent wedding, , 594.14",01/11/2023,0000493564,594.14,Revenue,Folly Coffee House,0
South Ribble Borough Council,http://statistics.data.gov.uk/id/local-authority/30UE,Central Support Services,Legal,4821,"Professional fees from 26.08.2023 to 26.09.2023 relating to NAME REDACTED, Invoice ref: 629595",01/11/2023,0000493498,921,Revenue,Forbes Solicitors Office,0
South Ribble Borough Council,http://statistics.data.gov.uk/id/local-authority/30UE,Community Development,Core Fund,4861,"Support to continue the improvement of the car park area at Moss Lane, Leyland Railway Station",15/11/2023,0000493778,600,Revenue,Friends of Leyland Station,0
South Ribble Borough Council,http://statistics.data.gov.uk/id/local-authority/30UE,Central Support Services,Materials General,4040,4 x Filter Kit Bin G027,22/11/2023,0000493634,1193.6,Revenue,GEESINK NORBA LTD,0
South Ribble Borough Council,http://statistics.data.gov.uk/id/local-authority/30UE,Corporate Management,Merchant Charges,4816,89790801 May 20,03/11/2023,0000489887,4295.49,Revenue,GLOBAL PAYMENTS (GPUK LLP),0
South Ribble Borough Council,http://statistics.data.gov.uk/id/local-authority/30UE,Corporate Management,Merchant Charges,4816,89790801 June 20,03/11/2023,0000489887,3365.44,Revenue,GLOBAL PAYMENTS (GPUK LLP),0
South Ribble Borough Council,http://statistics.data.gov.uk/id/local-authority/30UE,Corporate Management,Merchant Charges,4816,89790801 July 20,03/11/2023,0000489887,2690.09,Revenue,GLOBAL PAYMENTS (GPUK LLP),0
South Ribble Borough Council,http://statistics.data.gov.uk/id/local-authority/30UE,Corporate Management,Merchant Charges,4816,89790801 Aug 20,03/11/2023,0000489887,1927.23,Revenue,GLOBAL PAYMENTS (GPUK LLP),0
South Ribble Borough Council,http://statistics.data.gov.uk/id/local-authority/30UE,Corporate Management,Merchant Charges,4816,89790801 Sept 20,03/11/2023,0000489887,1671.44,Revenue,GLOBAL PAYMENTS (GPUK LLP),0
South Ribble Borough Council,http://statistics.data.gov.uk/id/local-authority/30UE,Corporate Management,Merchant Charges,4816,89790801 Oct 20,03/11/2023,0000489887,1857.29,Revenue,GLOBAL PAYMENTS (GPUK LLP),0
South Ribble Borough Council,http://statistics.data.gov.uk/id/local-authority/30UE,Corporate Management,Merchant Charges,4816,89790801 Nov 20,03/11/2023,0000489887,1686.29,Revenue,GLOBAL PAYMENTS (GPUK LLP),0
South Ribble Borough Council,http://statistics.data.gov.uk/id/local-authority/30UE,Corporate Management,Merchant Charges,4816,89790801 Dec 20,03/11/2023,0000489887,2374.2,Revenue,GLOBAL PAYMENTS (GPUK LLP),0
South Ribble Borough Council,http://statistics.data.gov.uk/id/local-authority/30UE,Corporate Management,Merchant Charges,4816,89790801 Jan 21,03/11/2023,0000489887,1535.21,Revenue,GLOBAL PAYMENTS (GPUK LLP),0
South Ribble Borough Council,http://statistics.data.gov.uk/id/local-authority/30UE,Corporate Management,Merchant Charges,4816,89790801 Feb 21,03/11/2023,0000489887,1896.55,Revenue,GLOBAL PAYMENTS (GPUK LLP),0
South Ribble Borough Council,http://statistics.data.gov.uk/id/local-authority/30UE,Corporate Management,Merchant Charges,4816,89790801 Mar 21,03/11/2023,0000489887,2124.73,Revenue,GLOBAL PAYMENTS (GPUK LLP),0
South Ribble Borough Council,http://statistics.data.gov.uk/id/local-authority/30UE,Corporate Management,Merchant Charges,4816,89758311 May 20,03/11/2023,0000489888,2825.35,Revenue,GLOBAL PAYMENTS (GPUK LLP),0
South Ribble Borough Council,http://statistics.data.gov.uk/id/local-authority/30UE,Corporate Management,Merchant Charges,4816,89758311 June 20,03/11/2023,0000489888,2202.79,Revenue,GLOBAL PAYMENTS (GPUK LLP),0
South Ribble Borough Council,http://statistics.data.gov.uk/id/local-authority/30UE,Corporate Management,Merchant Charges,4816,89758311 July 20,03/11/2023,0000489888,2541.67,Revenue,GLOBAL PAYMENTS (GPUK LLP),0
South Ribble Borough Council,http://statistics.data.gov.uk/id/local-authority/30UE,Corporate Management,Merchant Charges,4816,89758311 Aug 20,03/11/2023,0000489888,2243.8,Revenue,GLOBAL PAYMENTS (GPUK LLP),0
South Ribble Borough Council,http://statistics.data.gov.uk/id/local-authority/30UE,Corporate Management,Merchant Charges,4816,89758311 Sept 20,03/11/2023,0000489888,2124.12,Revenue,GLOBAL PAYMENTS (GPUK LLP),0
South Ribble Borough Council,http://statistics.data.gov.uk/id/local-authority/30UE,Corporate Management,Merchant Charges,4816,89758311 Oct 20,03/11/2023,0000489888,2459.03,Revenue,GLOBAL PAYMENTS (GPUK LLP),0
South Ribble Borough Council,http://statistics.data.gov.uk/id/local-authority/30UE,Corporate Management,Merchant Charges,4816,89758311 Nov 20,03/11/2023,0000489888,2225.26,Revenue,GLOBAL PAYMENTS (GPUK LLP),0
South Ribble Borough Council,http://statistics.data.gov.uk/id/local-authority/30UE,Corporate Management,Merchant Charges,4816,89758311 Dec 20,03/11/2023,0000489888,2199.05,Revenue,GLOBAL PAYMENTS (GPUK LLP),0
South Ribble Borough Council,http://statistics.data.gov.uk/id/local-authority/30UE,Corporate Management,Merchant Charges,4816,89758311 Jan 21,03/11/2023,0000489888,1415.3,Revenue,GLOBAL PAYMENTS (GPUK LLP),0
South Ribble Borough Council,http://statistics.data.gov.uk/id/local-authority/30UE,Corporate Management,Merchant Charges,4816,89758311 Feb 21,03/11/2023,0000489888,2139.06,Revenue,GLOBAL PAYMENTS (GPUK LLP),0
South Ribble Borough Council,http://statistics.data.gov.uk/id/local-authority/30UE,Corporate Management,Merchant Charges,4816,89758311 Mar 21,03/11/2023,0000489888,2340.54,Revenue,GLOBAL PAYMENTS (GPUK LLP),0
South Ribble Borough Council,http://statistics.data.gov.uk/id/local-authority/30UE,Corporate Management,Merchant Charges,4816,89758311 Apr 21,03/11/2023,0000489890,4610.71,Revenue,GLOBAL PAYMENTS (GPUK LLP),0
South Ribble Borough Council,http://statistics.data.gov.uk/id/local-authority/30UE,Corporate Management,Merchant Charges,4816,89758311 May 21,03/11/2023,0000489890,3702.44,Revenue,GLOBAL PAYMENTS (GPUK LLP),0
South Ribble Borough Council,http://statistics.data.gov.uk/id/local-authority/30UE,Corporate Management,Merchant Charges,4816,89758311 June 21,03/11/2023,0000489890,2075.53,Revenue,GLOBAL PAYMENTS (GPUK LLP),0
South Ribble Borough Council,http://statistics.data.gov.uk/id/local-authority/30UE,Corporate Management,Merchant Charges,4816,89758311 July 21,03/11/2023,0000489890,2166.1,Revenue,GLOBAL PAYMENTS (GPUK LLP),0
South Ribble Borough Council,http://statistics.data.gov.uk/id/local-authority/30UE,Corporate Management,Merchant Charges,4816,89758311 Aug 21,03/11/2023,0000489890,1721.7,Revenue,GLOBAL PAYMENTS (GPUK LLP),0
South Ribble Borough Council,http://statistics.data.gov.uk/id/local-authority/30UE,Corporate Management,Merchant Charges,4816,89758311 Sept 21,03/11/2023,0000489890,2345.81,Revenue,GLOBAL PAYMENTS (GPUK LLP),0
South Ribble Borough Council,http://statistics.data.gov.uk/id/local-authority/30UE,Corporate Management,Merchant Charges,4816,89758311 Oct 21,03/11/2023,0000489890,2280.04,Revenue,GLOBAL PAYMENTS (GPUK LLP),0
South Ribble Borough Council,http://statistics.data.gov.uk/id/local-authority/30UE,Corporate Management,Merchant Charges,4816,89758311 Nov 21,03/11/2023,0000489890,1432.48,Revenue,GLOBAL PAYMENTS (GPUK LLP),0
South Ribble Borough Council,http://statistics.data.gov.uk/id/local-authority/30UE,Corporate Management,Merchant Charges,4816,89758311 Dec 21,03/11/2023,0000489890,2789.17,Revenue,GLOBAL PAYMENTS (GPUK LLP),0
South Ribble Borough Council,http://statistics.data.gov.uk/id/local-authority/30UE,Corporate Management,Merchant Charges,4816,89758311 Jan 22,03/11/2023,0000489890,1141.18,Revenue,GLOBAL PAYMENTS (GPUK LLP),0
South Ribble Borough Council,http://statistics.data.gov.uk/id/local-authority/30UE,Corporate Management,Merchant Charges,4816,89758311 Feb 22,03/11/2023,0000489890,2080.16,Revenue,GLOBAL PAYMENTS (GPUK LLP),0
South Ribble Borough Council,http://statistics.data.gov.uk/id/local-authority/30UE,Corporate Management,Merchant Charges,4816,89758311 Mar 22,03/11/2023,0000489890,3807.59,Revenue,GLOBAL PAYMENTS (GPUK LLP),0
South Ribble Borough Council,http://statistics.data.gov.uk/id/local-authority/30UE,Corporate Management,Merchant Charges,4816,89790801 Apr 21,03/11/2023,0000489891,6476.52,Revenue,GLOBAL PAYMENTS (GPUK LLP),0
South Ribble Borough Council,http://statistics.data.gov.uk/id/local-authority/30UE,Corporate Management,Merchant Charges,4816,89790801 May 21,03/11/2023,0000489891,4372.49,Revenue,GLOBAL PAYMENTS (GPUK LLP),0
South Ribble Borough Council,http://statistics.data.gov.uk/id/local-authority/30UE,Corporate Management,Merchant Charges,4816,89790801 June 21,03/11/2023,0000489891,2599.03,Revenue,GLOBAL PAYMENTS (GPUK LLP),0
South Ribble Borough Council,http://statistics.data.gov.uk/id/local-authority/30UE,Corporate Management,Merchant Charges,4816,89790801 July 21,03/11/2023,0000489891,2574.5,Revenue,GLOBAL PAYMENTS (GPUK LLP),0
South Ribble Borough Council,http://statistics.data.gov.uk/id/local-authority/30UE,Corporate Management,Merchant Charges,4816,89790801 Aug 21,03/11/2023,0000489891,2208.84,Revenue,GLOBAL PAYMENTS (GPUK LLP),0
South Ribble Borough Council,http://statistics.data.gov.uk/id/local-authority/30UE,Corporate Management,Merchant Charges,4816,89790801 Sept 21,03/11/2023,0000489891,2291.57,Revenue,GLOBAL PAYMENTS (GPUK LLP),0
South Ribble Borough Council,http://statistics.data.gov.uk/id/local-authority/30UE,Corporate Management,Merchant Charges,4816,89790801 Oct 21,03/11/2023,0000489891,1923.73,Revenue,GLOBAL PAYMENTS (GPUK LLP),0
South Ribble Borough Council,http://statistics.data.gov.uk/id/local-authority/30UE,Corporate Management,Merchant Charges,4816,89790801 Nov 21,03/11/2023,0000489891,1722.04,Revenue,GLOBAL PAYMENTS (GPUK LLP),0
South Ribble Borough Council,http://statistics.data.gov.uk/id/local-authority/30UE,Corporate Management,Merchant Charges,4816,89790801 Dec 21,03/11/2023,0000489891,3204.01,Revenue,GLOBAL PAYMENTS (GPUK LLP),0
South Ribble Borough Council,http://statistics.data.gov.uk/id/local-authority/30UE,Corporate Management,Merchant Charges,4816,89790801 Jan 22,03/11/2023,0000489891,1838.29,Revenue,GLOBAL PAYMENTS (GPUK LLP),0
South Ribble Borough Council,http://statistics.data.gov.uk/id/local-authority/30UE,Corporate Management,Merchant Charges,4816,89790801 Feb 22,03/11/2023,0000489891,3334.67,Revenue,GLOBAL PAYMENTS (GPUK LLP),0
South Ribble Borough Council,http://statistics.data.gov.uk/id/local-authority/30UE,Corporate Management,Merchant Charges,4816,89790801 Mar 22,03/11/2023,0000489891,2734.06,Revenue,GLOBAL PAYMENTS (GPUK LLP),0
South Ribble Borough Council,http://statistics.data.gov.uk/id/local-authority/30UE,Corporate Management,Merchant Charges,4816,47815551 Oct 22,03/11/2023,0000489895,516.6,Revenue,GLOBAL PAYMENTS (GPUK LLP),0
South Ribble Borough Council,http://statistics.data.gov.uk/id/local-authority/30UE,Corporate Management,Merchant Charges,4816,47815551 Nov 22,03/11/2023,0000489895,1050.98,Revenue,GLOBAL PAYMENTS (GPUK LLP),0
South Ribble Borough Council,http://statistics.data.gov.uk/id/local-authority/30UE,Corporate Management,Merchant Charges,4816,47815551 Dec 22,03/11/2023,0000489895,1001.99,Revenue,GLOBAL PAYMENTS (GPUK LLP),0
South Ribble Borough Council,http://statistics.data.gov.uk/id/local-authority/30UE,Corporate Management,Merchant Charges,4816,47815551 Jan 23,03/11/2023,0000489895,798.1,Revenue,GLOBAL PAYMENTS (GPUK LLP),0
South Ribble Borough Council,http://statistics.data.gov.uk/id/local-authority/30UE,Corporate Management,Merchant Charges,4816,47815551 Feb 23,03/11/2023,0000489895,1114.53,Revenue,GLOBAL PAYMENTS (GPUK LLP),0
South Ribble Borough Council,http://statistics.data.gov.uk/id/local-authority/30UE,Corporate Management,Merchant Charges,4816,47815551 Mar 23,03/11/2023,0000489895,1287.42,Revenue,GLOBAL PAYMENTS (GPUK LLP),0
South Ribble Borough Council,http://statistics.data.gov.uk/id/local-authority/30UE,Corporate Management,Merchant Charges,4816,47835441 Oct 22,03/11/2023,0000489899,1916.7,Revenue,GLOBAL PAYMENTS (GPUK LLP),0
South Ribble Borough Council,http://statistics.data.gov.uk/id/local-authority/30UE,Corporate Management,Merchant Charges,4816,47835441 Nov 22,03/11/2023,0000489899,2710.8,Revenue,GLOBAL PAYMENTS (GPUK LLP),0
South Ribble Borough Council,http://statistics.data.gov.uk/id/local-authority/30UE,Corporate Management,Merchant Charges,4816,47835441 Dec 22,03/11/2023,0000489899,2609.26,Revenue,GLOBAL PAYMENTS (GPUK LLP),0
South Ribble Borough Council,http://statistics.data.gov.uk/id/local-authority/30UE,Corporate Management,Merchant Charges,4816,47835441 Jan 23,03/11/2023,0000489899,2060.81,Revenue,GLOBAL PAYMENTS (GPUK LLP),0
South Ribble Borough Council,http://statistics.data.gov.uk/id/local-authority/30UE,Corporate Management,Merchant Charges,4816,47835441 Feb 23,03/11/2023,0000489899,2256.23,Revenue,GLOBAL PAYMENTS (GPUK LLP),0
South Ribble Borough Council,http://statistics.data.gov.uk/id/local-authority/30UE,Corporate Management,Merchant Charges,4816,47835441 Mar 23,03/11/2023,0000489899,1886.31,Revenue,GLOBAL PAYMENTS (GPUK LLP),0
South Ribble Borough Council,http://statistics.data.gov.uk/id/local-authority/30UE,Corporate Management,Merchant Charges,4816,89758311 Apr 22,03/11/2023,0000489900,5244,Revenue,GLOBAL PAYMENTS (GPUK LLP),0
South Ribble Borough Council,http://statistics.data.gov.uk/id/local-authority/30UE,Corporate Management,Merchant Charges,4816,89758311 May 22,03/11/2023,0000489900,3462.49,Revenue,GLOBAL PAYMENTS (GPUK LLP),0
South Ribble Borough Council,http://statistics.data.gov.uk/id/local-authority/30UE,Corporate Management,Merchant Charges,4816,89758311 June 22,03/11/2023,0000489900,2538.21,Revenue,GLOBAL PAYMENTS (GPUK LLP),0
South Ribble Borough Council,http://statistics.data.gov.uk/id/local-authority/30UE,Corporate Management,Merchant Charges,4816,89758311 July 22,03/11/2023,0000489900,2193.77,Revenue,GLOBAL PAYMENTS (GPUK LLP),0
South Ribble Borough Council,http://statistics.data.gov.uk/id/local-authority/30UE,Corporate Management,Merchant Charges,4816,89758311 Aug 22,03/11/2023,0000489900,2147.85,Revenue,GLOBAL PAYMENTS (GPUK LLP),0
South Ribble Borough Council,http://statistics.data.gov.uk/id/local-authority/30UE,Corporate Management,Merchant Charges,4816,89758311 Sept 22,03/11/2023,0000489900,1838.15,Revenue,GLOBAL PAYMENTS (GPUK LLP),0
South Ribble Borough Council,http://statistics.data.gov.uk/id/local-authority/30UE,Corporate Management,Merchant Charges,4816,89758311 Oct 22,03/11/2023,0000489900,512.75,Revenue,GLOBAL PAYMENTS (GPUK LLP),0
South Ribble Borough Council,http://statistics.data.gov.uk/id/local-authority/30UE,Corporate Management,Merchant Charges,4816,89790801 Apr 22,03/11/2023,0000489901,7521.88,Revenue,GLOBAL PAYMENTS (GPUK LLP),0
South Ribble Borough Council,http://statistics.data.gov.uk/id/local-authority/30UE,Corporate Management,Merchant Charges,4816,89790801 May 22,03/11/2023,0000489901,4605.26,Revenue,GLOBAL PAYMENTS (GPUK LLP),0
South Ribble Borough Council,http://statistics.data.gov.uk/id/local-authority/30UE,Corporate Management,Merchant Charges,4816,89790801 June 22,03/11/2023,0000489901,4211.31,Revenue,GLOBAL PAYMENTS (GPUK LLP),0
South Ribble Borough Council,http://statistics.data.gov.uk/id/local-authority/30UE,Corporate Management,Merchant Charges,4816,89790801 July 22,03/11/2023,0000489901,2891.76,Revenue,GLOBAL PAYMENTS (GPUK LLP),0
South Ribble Borough Council,http://statistics.data.gov.uk/id/local-authority/30UE,Corporate Management,Merchant Charges,4816,89790801 Aug 22,03/11/2023,0000489901,2727.51,Revenue,GLOBAL PAYMENTS (GPUK LLP),0
South Ribble Borough Council,http://statistics.data.gov.uk/id/local-authority/30UE,Corporate Management,Merchant Charges,4816,89790801 Sept 22,03/11/2023,0000489901,2478.11,Revenue,GLOBAL PAYMENTS (GPUK LLP),0
South Ribble Borough Council,http://statistics.data.gov.uk/id/local-authority/30UE,Corporate Management,Merchant Charges,4816,89790801 Oct 22,03/11/2023,0000489901,896.5,Revenue,GLOBAL PAYMENTS (GPUK LLP),0
South Ribble Borough Council,http://statistics.data.gov.uk/id/local-authority/30UE,Corporate Management,Merchant Charges,4816,89758231 May 20,03/11/2023,0000489945,1486.19,Revenue,GLOBAL PAYMENTS (GPUK LLP),0
South Ribble Borough Council,http://statistics.data.gov.uk/id/local-authority/30UE,Corporate Management,Merchant Charges,4816,89758231 June 20,03/11/2023,0000489945,1130.4,Revenue,GLOBAL PAYMENTS (GPUK LLP),0
South Ribble Borough Council,http://statistics.data.gov.uk/id/local-authority/30UE,Corporate Management,Merchant Charges,4816,89758231 July 20,03/11/2023,0000489945,1307.78,Revenue,GLOBAL PAYMENTS (GPUK LLP),0
South Ribble Borough Council,http://statistics.data.gov.uk/id/local-authority/30UE,Corporate Management,Merchant Charges,4816,89758231 Aug 20,03/11/2023,0000489945,1234.15,Revenue,GLOBAL PAYMENTS (GPUK LLP),0
South Ribble Borough Council,http://statistics.data.gov.uk/id/local-authority/30UE,Corporate Management,Merchant Charges,4816,89758231 Sept 20,03/11/2023,0000489945,1262.49,Revenue,GLOBAL PAYMENTS (GPUK LLP),0
South Ribble Borough Council,http://statistics.data.gov.uk/id/local-authority/30UE,Corporate Management,Merchant Charges,4816,89758231 Oct 20,03/11/2023,0000489945,1312.24,Revenue,GLOBAL PAYMENTS (GPUK LLP),0
South Ribble Borough Council,http://statistics.data.gov.uk/id/local-authority/30UE,Corporate Management,Merchant Charges,4816,89758231 Nov 20,03/11/2023,0000489945,1745.32,Revenue,GLOBAL PAYMENTS (GPUK LLP),0
South Ribble Borough Council,http://statistics.data.gov.uk/id/local-authority/30UE,Corporate Management,Merchant Charges,4816,89758231 Dec 20,03/11/2023,0000489945,1650.9,Revenue,GLOBAL PAYMENTS (GPUK LLP),0
South Ribble Borough Council,http://statistics.data.gov.uk/id/local-authority/30UE,Corporate Management,Merchant Charges,4816,89758231 Jan 21,03/11/2023,0000489945,1043.95,Revenue,GLOBAL PAYMENTS (GPUK LLP),0
South Ribble Borough Council,http://statistics.data.gov.uk/id/local-authority/30UE,Corporate Management,Merchant Charges,4816,89758231 Feb 21,03/11/2023,0000489945,1056.62,Revenue,GLOBAL PAYMENTS (GPUK LLP),0
South Ribble Borough Council,http://statistics.data.gov.uk/id/local-authority/30UE,Corporate Management,Merchant Charges,4816,89758231 Mar 21,03/11/2023,0000489945,786.71,Revenue,GLOBAL PAYMENTS (GPUK LLP),0
South Ribble Borough Council,http://statistics.data.gov.uk/id/local-authority/30UE,Corporate Management,Merchant Charges,4816,89758231 Apr 21,03/11/2023,0000489946,1702.04,Revenue,GLOBAL PAYMENTS (GPUK LLP),0
South Ribble Borough Council,http://statistics.data.gov.uk/id/local-authority/30UE,Corporate Management,Merchant Charges,4816,89758231 May 21,03/11/2023,0000489946,1760.58,Revenue,GLOBAL PAYMENTS (GPUK LLP),0
South Ribble Borough Council,http://statistics.data.gov.uk/id/local-authority/30UE,Corporate Management,Merchant Charges,4816,89758231 June 21,03/11/2023,0000489946,1264.42,Revenue,GLOBAL PAYMENTS (GPUK LLP),0
South Ribble Borough Council,http://statistics.data.gov.uk/id/local-authority/30UE,Corporate Management,Merchant Charges,4816,89758231 July 21,03/11/2023,0000489946,1437.15,Revenue,GLOBAL PAYMENTS (GPUK LLP),0
South Ribble Borough Council,http://statistics.data.gov.uk/id/local-authority/30UE,Corporate Management,Merchant Charges,4816,89758231 Aug 21,03/11/2023,0000489946,1390.07,Revenue,GLOBAL PAYMENTS (GPUK LLP),0
South Ribble Borough Council,http://statistics.data.gov.uk/id/local-authority/30UE,Corporate Management,Merchant Charges,4816,89758231 Sept 21,03/11/2023,0000489946,1510.23,Revenue,GLOBAL PAYMENTS (GPUK LLP),0
South Ribble Borough Council,http://statistics.data.gov.uk/id/local-authority/30UE,Corporate Management,Merchant Charges,4816,89758231 Oct 21,03/11/2023,0000489946,1651.25,Revenue,GLOBAL PAYMENTS (GPUK LLP),0
South Ribble Borough Council,http://statistics.data.gov.uk/id/local-authority/30UE,Corporate Management,Merchant Charges,4816,89758231 Nov 21,03/11/2023,0000489946,1347.49,Revenue,GLOBAL PAYMENTS (GPUK LLP),0
South Ribble Borough Council,http://statistics.data.gov.uk/id/local-authority/30UE,Corporate Management,Merchant Charges,4816,89758231 Dec 21,03/11/2023,0000489946,2566.31,Revenue,GLOBAL PAYMENTS (GPUK LLP),0
South Ribble Borough Council,http://statistics.data.gov.uk/id/local-authority/30UE,Corporate Management,Merchant Charges,4816,89758231 Jan 22,03/11/2023,0000489946,1552.57,Revenue,GLOBAL PAYMENTS (GPUK LLP),0
South Ribble Borough Council,http://statistics.data.gov.uk/id/local-authority/30UE,Corporate Management,Merchant Charges,4816,89758231 Feb 22,03/11/2023,0000489946,2093.26,Revenue,GLOBAL PAYMENTS (GPUK LLP),0
South Ribble Borough Council,http://statistics.data.gov.uk/id/local-authority/30UE,Corporate Management,Merchant Charges,4816,89758231 Mar 22,03/11/2023,0000489946,1996.71,Revenue,GLOBAL PAYMENTS (GPUK LLP),0
South Ribble Borough Council,http://statistics.data.gov.uk/id/local-authority/30UE,Corporate Management,Merchant Charges,4816,89758231 Apr 22,03/11/2023,0000489947,2318.64,Revenue,GLOBAL PAYMENTS (GPUK LLP),0
South Ribble Borough Council,http://statistics.data.gov.uk/id/local-authority/30UE,Corporate Management,Merchant Charges,4816,89758231 May 22,03/11/2023,0000489947,2227.99,Revenue,GLOBAL PAYMENTS (GPUK LLP),0
South Ribble Borough Council,http://statistics.data.gov.uk/id/local-authority/30UE,Corporate Management,Merchant Charges,4816,89758231 June 22,03/11/2023,0000489947,2189.6,Revenue,GLOBAL PAYMENTS (GPUK LLP),0
South Ribble Borough Council,http://statistics.data.gov.uk/id/local-authority/30UE,Corporate Management,Merchant Charges,4816,89758231 July 22,03/11/2023,0000489947,1887.97,Revenue,GLOBAL PAYMENTS (GPUK LLP),0
South Ribble Borough Council,http://statistics.data.gov.uk/id/local-authority/30UE,Corporate Management,Merchant Charges,4816,89758231 Aug 22,03/11/2023,0000489947,1849.86,Revenue,GLOBAL PAYMENTS (GPUK LLP),0
South Ribble Borough Council,http://statistics.data.gov.uk/id/local-authority/30UE,Corporate Management,Merchant Charges,4816,89758231 Sept 22,03/11/2023,0000489947,1631.63,Revenue,GLOBAL PAYMENTS (GPUK LLP),0
South Ribble Borough Council,http://statistics.data.gov.uk/id/local-authority/30UE,Corporate Management,Merchant Charges,4816,89758231 Oct 22,03/11/2023,0000489947,621.52,Revenue,GLOBAL PAYMENTS (GPUK LLP),0
South Ribble Borough Council,http://statistics.data.gov.uk/id/local-authority/30UE,Corporate Management,Merchant Charges,4816,31/03/2023,03/11/2023,0000491336,3733.83,Revenue,GLOBAL PAYMENTS (GPUK LLP),0
South Ribble Borough Council,http://statistics.data.gov.uk/id/local-authority/30UE,Corporate Management,Merchant Charges,4816,31/03/2023,03/11/2023,0000491338,5169.48,Revenue,GLOBAL PAYMENTS (GPUK LLP),0
South Ribble Borough Council,http://statistics.data.gov.uk/id/local-authority/30UE,Corporate Management,Merchant Charges,4816,30/04/2023,03/11/2023,0000491347,2971.83,Revenue,GLOBAL PAYMENTS (GPUK LLP),0
South Ribble Borough Council,http://statistics.data.gov.uk/id/local-authority/30UE,Corporate Management,Merchant Charges,4816,30/04/2023,03/11/2023,0000491349,4666,Revenue,GLOBAL PAYMENTS (GPUK LLP),0
South Ribble Borough Council,http://statistics.data.gov.uk/id/local-authority/30UE,Corporate Management,Merchant Charges,4816,31/05/2023,03/11/2023,0000491362,2583.18,Revenue,GLOBAL PAYMENTS (GPUK LLP),0
South Ribble Borough Council,http://statistics.data.gov.uk/id/local-authority/30UE,Corporate Management,Merchant Charges,4816,31/05/2023,03/11/2023,0000491364,3880.19,Revenue,GLOBAL PAYMENTS (GPUK LLP),0
South Ribble Borough Council,http://statistics.data.gov.uk/id/local-authority/30UE,Corporate Management,Merchant Charges,4816,Credit cards 31-06-23,03/11/2023,0000491365,3136.7,Revenue,GLOBAL PAYMENTS (GPUK LLP),0
South Ribble Borough Council,http://statistics.data.gov.uk/id/local-authority/30UE,Corporate Management,Merchant Charges,4816,Credit cards,03/11/2023,0000491367,1752.99,Revenue,GLOBAL PAYMENTS (GPUK LLP),0
South Ribble Borough Council,http://statistics.data.gov.uk/id/local-authority/30UE,Corporate Management,Merchant Charges,4816,47815551 31-07-23,03/11/2023,0000492991,1387.24,Revenue,GLOBAL PAYMENTS (GPUK LLP),0
South Ribble Borough Council,http://statistics.data.gov.uk/id/local-authority/30UE,Corporate Management,Merchant Charges,4816,47835441 31-07-23,03/11/2023,0000492993,3314.54,Revenue,GLOBAL PAYMENTS (GPUK LLP),0
South Ribble Borough Council,http://statistics.data.gov.uk/id/local-authority/30UE,Corporate Management,Merchant Charges,4816,47815551 31-08-23,03/11/2023,0000493001,1216.4,Revenue,GLOBAL PAYMENTS (GPUK LLP),0
South Ribble Borough Council,http://statistics.data.gov.uk/id/local-authority/30UE,Corporate Management,Merchant Charges,4816,47835441 31-08-23,03/11/2023,0000493003,3272.58,Revenue,GLOBAL PAYMENTS (GPUK LLP),0
South Ribble Borough Council,http://statistics.data.gov.uk/id/local-authority/30UE,Central Support Services,Reactive Repair & Maintenance,2020,Civic Centre � Fault on pressurisation unit � replaced non return valve on pressurisation unit as per NAME REDACTED request,01/11/2023,0000493439,552.79,Revenue,GOS Heating Ltd,0
South Ribble Borough Council,http://statistics.data.gov.uk/id/local-authority/30UE,Central Support Services,Planned Annual Repair & Maintenance,2021,"Service internal fire damper(s). Annual inspection, please provide report to NAME REDACTED on compleation., Civic centre main office bloc",08/11/2023,0000493624,1094,Revenue,GOS Heating Ltd,0
South Ribble Borough Council,http://statistics.data.gov.uk/id/local-authority/30UE,Surplus or Deficit on Trading,Reactive Repair & Maintenance,2020,"OP-2, Replace the plate heat exchangers for new. , Install strainer filters on the return pipework to the PHE on the system side.",08/11/2023,0000493627,6992.5,Revenue,GOS Heating Ltd,0
South Ribble Borough Council,http://statistics.data.gov.uk/id/local-authority/30UE,Central Support Services,Reactive Repair & Maintenance,2020,"Replacement of expansion tank in 3rd floor boiler room at the Civic as per NAME REDACTED request at Civic Centre, Leyland, PR25 1DH",15/11/2023,0000493944,1911,Revenue,GOS Heating Ltd,0
South Ribble Borough Council,http://statistics.data.gov.uk/id/local-authority/30UE,Capital,Capital Grant,C570,DFG WORK FOR ADAPTATION FOR LEVEL ACCESS SHOWER AT ADDRESS REDACTED AS PER SRBC PLANS AND QUOTE SUPPLIED OF 4620.,22/11/2023,0000494178,4620.58,Revenue,GOS Heating Ltd,0
South Ribble Borough Council,http://statistics.data.gov.uk/id/local-authority/30UE,Housing Advice,Contributions to Other Bodies,4730,AFFORDABLE WARMTH SCHEME FOR GAS BOILER REPLACEMENT AT ADDRESS REDACTED AS PER QUOTE SUPPLIED OF 1740.00( INC VAT),29/11/2023,0000494323,1450,Revenue,GOS Heating Ltd,0
South Ribble Borough Council,http://statistics.data.gov.uk/id/local-authority/30UE,Capital,Cap Contract Payment,C230,Worden Hall - Consultant Structural Engineer Services (original POs closed PUR0054131 & PUR0047943),29/11/2023,0000494330,6000,Revenue,GRAHAM SCHOFIELD ASSOCIATES,0
South Ribble Borough Council,http://statistics.data.gov.uk/id/local-authority/30UE,Unapportionable Central OHeads,GMC -PIA Payments,1701,Rechargeable pension costs 2023-24,15/11/2023,0000493938,7909.84,Revenue,GREATER MANCHESTER PENSION FUND,0
South Ribble Borough Council,http://statistics.data.gov.uk/id/local-authority/30UE,Open Spaces,GM Refurbishment,4657,"Carpet repairs at Riverside playground, Coupe Green Playground and Farington park playground as per quotations",15/11/2023,0000493512,930,Revenue,GROUNDWORK LEISURE SERVICES LTD,0
South Ribble Borough Council,http://statistics.data.gov.uk/id/local-authority/30UE,Capital,Cap Contract Payment,C230,Worden sewage treatments Packages PMI�s 1-5,08/11/2023,0000493645,21592.75,Revenue,H Clarke and Sons Ltd,0
South Ribble Borough Council,http://statistics.data.gov.uk/id/local-authority/30UE,Capital,Cap Contract Payment,C230,Worden Park water treatment packages,08/11/2023,0000493646,11018.25,Revenue,H Clarke and Sons Ltd,0
South Ribble Borough Council,http://statistics.data.gov.uk/id/local-authority/30UE,Open Spaces,External Contractors Charges,4570,"Drainage investigation CCTV survey and Vacjet. 95 Per Hour minimum 4 hours. Strawberry Valley Park, Bent Lane Leyland, PR25 4HS.",22/11/2023,0000494068,990,Revenue,H Clarke and Sons Ltd,0
South Ribble Borough Council,http://statistics.data.gov.uk/id/local-authority/30UE,Community Development,External Catering Charges,4575,"Packed lunches for Summer 2023 HAF @ 5 per person, , Week 5: x280 = 1,400, , Total = 1,400 ex VAT, , Invoice INV-0681",01/11/2023,0000493425,1400,Revenue,Halls Bakery Limited,0
South Ribble Borough Council,http://statistics.data.gov.uk/id/local-authority/30UE,Community Development,Contributions to Other Bodies,4730,Provision of 360 lunch packs for HAF Plus @ 5 per head.,15/11/2023,0000493983,1800,Revenue,Halls Bakery Limited,0
South Ribble Borough Council,http://statistics.data.gov.uk/id/local-authority/30UE,Capital,Cap Contract Payment,C230,Leyland Town Deal - CCTV Strategy,29/11/2023,0000491180,3600,Revenue,Harry Solutions Ltd,0
South Ribble Borough Council,http://statistics.data.gov.uk/id/local-authority/30UE,Surplus or Deficit on Trading,Reactive Repair & Maintenance,2020,"3 damaged porthole glass units, and 3 others on car park/crossroads site using solid timber infill covered on each face with pain",08/11/2023,0000493690,1290.75,Revenue,Healthmatic Limited,0
South Ribble Borough Council,http://statistics.data.gov.uk/id/local-authority/30UE,Unapportionable Central OHeads,Land Registry Fees,4523,land reg 2019-20,03/11/2023,0000493044,3330,Revenue,HM LAND REGISTRY,0
South Ribble Borough Council,http://statistics.data.gov.uk/id/local-authority/30UE,Unapportionable Central OHeads,Land Registry Fees,4523,land reg 2020-21,03/11/2023,0000493044,3954,Revenue,HM LAND REGISTRY,0
South Ribble Borough Council,http://statistics.data.gov.uk/id/local-authority/30UE,Unapportionable Central OHeads,Land Registry Fees,4523,land reg 2021-22,03/11/2023,0000493044,5693,Revenue,HM LAND REGISTRY,0
South Ribble Borough Council,http://statistics.data.gov.uk/id/local-authority/30UE,Short Term Creditors,Amount Paid,0030,HMRC Income Tax - Oct 23 Deductions from Payroll,15/11/2023,0000493829,109632.58,Revenue,HM REVENUE & CUSTOMS 065PV00107808,0
South Ribble Borough Council,http://statistics.data.gov.uk/id/local-authority/30UE,Unapportionable Central OHeads,Apprentice Levy,1111,HMRC App Levy - Oct 23 Deductions from Payroll,15/11/2023,0000493830,3729,Revenue,HM REVENUE & CUSTOMS 065PV00107808,0
South Ribble Borough Council,http://statistics.data.gov.uk/id/local-authority/30UE,Short Term Creditors,Amount Paid,0030,HMRC NI EE's - Oct 23 Deductions from Payroll,15/11/2023,0000493831,63998.67,Revenue,HM REVENUE & CUSTOMS 065PV00107808,0
South Ribble Borough Council,http://statistics.data.gov.uk/id/local-authority/30UE,Short Term Creditors,Amount Paid,0030,HMRC NI ER's - Oct 23 Deductions from Payroll,15/11/2023,0000493832,89216.57,Revenue,HM REVENUE & CUSTOMS 065PV00107808,0
South Ribble Borough Council,http://statistics.data.gov.uk/id/local-authority/30UE,Short Term Creditors,Amount Paid,0030,HMRC Student Loans - Oct 23 Deductions from Payroll,15/11/2023,0000493834,3760,Revenue,HM REVENUE & CUSTOMS 065PV00107808,0
South Ribble Borough Council,http://statistics.data.gov.uk/id/local-authority/30UE,Capital,Misc Capital Payments,C234,"Replacement ALL External window(s)/door(s), External/internal decoration, UPVC facia/soffit install, Guttering/downspout replacem",15/11/2023,0000493751,31382.04,Revenue,Holden Building Solutions Limited,0
South Ribble Borough Council,http://statistics.data.gov.uk/id/local-authority/30UE,Capital,Misc Capital Payments,C234,LABOUR,15/11/2023,0000493751,9175.05,Revenue,Holden Building Solutions Limited,0
South Ribble Borough Council,http://statistics.data.gov.uk/id/local-authority/30UE,Capital,Consultancy,C259,Project Management Services - Jubilee Gardens (RIBA 4) - As per additional scope v3,29/11/2023,0000493665,4000,Revenue,Identity Consult Ltd,0
South Ribble Borough Council,http://statistics.data.gov.uk/id/local-authority/30UE,Capital,Consultancy,C259,Project Management Services - Jubilee Gardens (RIBA 4) - As per additional scope v3,29/11/2023,0000494345,4000,Revenue,Identity Consult Ltd,0
South Ribble Borough Council,http://statistics.data.gov.uk/id/local-authority/30UE,Central Support Services,Technical Support,4246,"Installation of upgrade for Eros, PVC and WebEros",22/11/2023,0000493633,1000,Revenue,IDOX PLC,0
South Ribble Borough Council,http://statistics.data.gov.uk/id/local-authority/30UE,Central Support Services,Materials General,4040,"ABS module, VIN REDACTED, JFC 20955",22/11/2023,0000493984,925,Revenue,JAMES HART (CHORLEY) LTD,0
South Ribble Borough Council,http://statistics.data.gov.uk/id/local-authority/30UE,Central Support Services,Materials General,4040,1 x Cruise Control Unit NAME REDACTED JFC20931,29/11/2023,0000494228,1800,Revenue,JAMES HART (CHORLEY) LTD,0
South Ribble Borough Council,http://statistics.data.gov.uk/id/local-authority/30UE,Community Development,Miscellaneous Expenses,4851,0,01/11/2023,0000493483,500,Revenue,Jemma Naish,0
South Ribble Borough Council,http://statistics.data.gov.uk/id/local-authority/30UE,Community Development,Miscellaneous Expenses,4851,0,22/11/2023,0000494131,500,Revenue,Jemma Naish,0
